[Event "Turkish Club Cup 2019"]
[Site "Konya"]
[Date "2019.07.17"]
[Round "2"]
[White "Celik, Abdullah"]
[Black "Ercan, Mehmet Fahri"]
[Result "1-0"]
[ECO "A45"]
[WhiteElo "2054"]
[BlackElo "1883"]
[Annotator "NA"]
[PlyCount "99"]
[EventDate "2019.07.16"]
[EventType "team-tourn"]
[EventCountry "TUR"]
[SourceTitle "playchess.com"]
[Source "ChessBase"]
[SourceQuality "1"]
[TimeControl "5400+30"]

1. d4 {[%emt 0:00:30]} Nf6 {[%emt 0:01:30]} 2. Bg5 {[%emt 0:00:00]} h6 {[%emt 0:00:00]} 3. Bxf6 {[%emt 0:01:00]} gxf6 {[%emt 0:00:00]} 4. e3 {[%emt 0:14:30]} b6 {[%emt 0:05:30]} 5. Nc3 {[%emt 0:20:30]} e6 {[%emt 0:02:30]} 6. d5 {[%emt 0:08:30]} e5 {[%emt 0:02:30]} 7. Qh5 {[%emt 0:01:30]} d6 {[%emt 0:06:30]} 8. Bb5+ {[%emt 0:02:30]} Bd7 {[%emt 0:05:30]} 9. Bxd7+ {[%emt 0:07:30]} Nxd7 {[%emt 0:00:30]} 10. Nge2 {[%emt 0:05:30]} Rg8 {[%emt 0:05:30]} 11. Ne4 {[%emt 0:00:30]} Nc5 {[%emt 0:04:30]} 12. N2g3 {[%emt 0:01:30]} Rg6 {[%emt 0:00:30]} 13. Nxc5 {[%emt 0:04:30]} bxc5 {[%emt 0:00:30]} 14. e4 {[%emt 0:02:30]} Rb8 {[%emt 0:01:30]} 15. O-O-O {[%emt 0:02:30]} Qd7 {[%emt 0:01:30]} 16. Qf3 {[%emt 0:01:30]} Qa4 {[%emt 0:08:30]} 17. Kb1 {[%emt 0:00:30]} Rb4 {[%emt 0:17:30]} 18. a3 {[%emt 0:03:30]} Rb8 {[%emt 0:07:30]} 19. Rhg1 {[%emt 0:00:51]} a5 {[%emt 0:08:38]} 20. h4 $16 {[%emt 0:01:35]} (20. Rd3 $18 {has better winning chances.}) 20... h5 {[%emt 0:05:39]} 21. Nxh5 {[%emt 0:02:15]} Qb5 {[%emt 0:00:48]} 22. Qc3 {[%emt 0:00:37]} Qe2 {[%emt 0:02:45]} 23. Qf3 {[%emt 0:02:33]} Qxf3 {[%emt 0:00:30]} 24. gxf3 {[%emt 0:00:30]} Rh6 {[%emt 0:00:30]} 25. Ng3 {[%emt 0:09:09]} Rxh4 {[%emt 0:03:58]} 26. Rh1 {[%emt 0:00:14]} Rf4 {[%emt 0:05:05]} 27. Rd3 {[%emt 0:00:22]} Rd8 {[%emt 0:02:15]} 28. Nh5 {[%emt 0:00:15]} Bh6 {[%emt 0:00:16]} 29. Nxf4 {[%emt 0:00:42]} Bxf4 {[%emt 0:00:03]} 30. Rh8+ {[%emt 0:00:00]} Ke7 {[%emt 0:00:41]} 31. Rxd8 {[%emt 0:00:00]} Kxd8 {[%emt 0:00:00]} 32. Rb3 {[%emt 0:00:37]} Bd2 {[%emt 0:01:01]} 33. c3 {[%emt 0:00:35]} Kc8 {[%emt 0:00:46]} 34. Rb5 {[%emt 0:00:24]} a4 {[%emt 0:00:29]} 35. Kc2 {[%emt 0:03:41]} Be1 {[%emt 0:00:13]} 36. Ra5 {[%emt 0:01:33]} Kb7 {[%emt 0:00:08]} 37. Rxa4 {[%emt 0:00:21]} Bxf2 {[%emt 0:00:42]} 38. Kd3 {[%emt 0:00:21]} Bh4 {[%emt 0:00:33]} 39. b4 {[%emt 0:00:53]} Bf2 {[%emt 0:00:36]} 40. Kc4 {[%emt 0:00:27]} Be3 {[%emt 0:00:41]} 41. Ra5 {[%emt 0:00:44]} cxb4 {[%emt 0:00:49]} 42. axb4 {[%emt 0:00:56]} Bg5 {[%emt 0:00:52]} 43. Kb5 {[%emt 0:00:35]} Bd2 {[%emt 0:00:28]} 44. c4 {[%emt 0:00:23]} Be3 {[%emt 0:00:34]} 45. Ra1 {[%emt 0:00:13]} Bd4 {[%emt 0:00:51]} 46. Rh1 {[%emt 0:00:07]} Be3 {[%emt 0:00:28]} 47. Rh7 {[%emt 0:00:07]} Bf4 {[%emt 0:00:19]} 48. Rxf7 {[%emt 0:00:32]} Bg5 {[%emt 0:00:03]} 49. c5 {[%emt 0:00:00]} dxc5 {[%emt 0:00:43]} 50. bxc5 {[%emt 0:00:08]} 1-0

[Event "Turkish Club Cup 2019"]
[Site "Konya"]
[Date "2019.07.17"]
[Round "2"]
[White "Kucuk, Dogan"]
[Black "Yalcin, Ozgun"]
[Result "0-1"]
[ECO "A04"]
[WhiteElo "2028"]
[BlackElo "1881"]
[Annotator "NA"]
[PlyCount "56"]
[EventDate "2019.07.16"]
[EventType "team-tourn"]
[EventCountry "TUR"]
[SourceTitle "playchess.com"]
[Source "ChessBase"]
[SourceQuality "1"]
[TimeControl "5400+30"]

1. e4 {[%emt 0:00:30]} c5 {[%emt 0:00:30]} 2. Nf3 {[%emt 0:00:30]} d6 {[%emt 0:00:00]} 3. d3 {[%emt 0:00:30]} g6 {[%emt 0:01:00]} 4. g3 {[%emt 0:00:00]} Bg7 {[%emt 0:00:30]} 5. Bg2 {[%emt 0:00:00]} Nc6 {[%emt 0:00:00]} 6. O-O {[%emt 0:00:30]} e5 {[%emt 0:00:00]} 7. c3 {[%emt 0:02:30]} Nge7 {[%emt 0:00:00]} 8. Be3 {[%emt 0:02:30]} O-O {[%emt 0:03:00]} 9. d4 {[%emt 0:01:30]} (9. Re1 $11 {keeps the balance.}) 9... exd4 {[%emt 0:10:30]} 10. cxd4 {[%emt 0:00:30]} Bg4 {[%emt 0:00:30]} 11. dxc5 {[%emt 0:11:30]} Bxf3 {[%emt 0:14:30]} 12. Qxf3 {[%emt 0:13:30]} Bxb2 {[%emt 0:09:30]} 13. Nd2 {[%emt 0:01:30]} Bxa1 {[%emt 0:05:30]} 14. Rxa1 {[%emt 0:01:30]} dxc5 {[%emt 0:02:30]} 15. Bh6 {[%emt 0:04:30]} Nd4 {[%emt 0:19:30] [#]} 16. Qg4 $19 {[%emt 0:09:30]} (16. Qf6 $1 $17 {[%mdl 512] was worth a try.} Ne2+ 17. Kf1) 16... Re8 {[%emt 0:05:30]} 17. Rb1 {[%emt 0:08:30]} b6 {[%emt 0:03:30]} 18. Bg5 {[%emt 0:11:30]} Ne6 {[%emt 0:02:30]} 19. Be3 {[%emt 0:00:00]} Nc6 {[%emt 0:03:38]} 20. f4 {[%emt 0:01:00]} Qd3 {[%emt 0:00:57]} 21. Kf2 {[%emt 0:05:30]} Ned4 {[%emt 0:02:40]} 22. e5 {[%emt 0:03:30]} Rad8 {[%emt 0:02:53]} 23. Be4 {[%emt 0:01:40]} Qc3 {[%emt 0:01:25]} 24. h4 {[%emt 0:02:45]} f5 {[%emt 0:00:42]} 25. exf6 {[%emt 0:00:30]} Nf5 {[%emt 0:00:30]} 26. f7+ {[%emt 0:00:30]} Kxf7 {[%emt 0:00:30]} 27. Nf3 {[%emt 0:00:30]} Qxe3+ {[%emt 0:00:30]} 28. Kg2 {[%emt 0:00:30]} Qxe4 {[%emt 0:00:30]} 0-1

[Event "Turkish Club Cup 2019"]
[Site "Konya"]
[Date "2019.07.17"]
[Round "2"]
[White "Caputcuoglu, Zeki Berke"]
[Black "Malgac, Omer Beyazit"]
[Result "1-0"]
[ECO "D33"]
[WhiteElo "2010"]
[BlackElo "1477"]
[Annotator "NA"]
[PlyCount "117"]
[EventDate "2019.07.16"]
[EventType "team-tourn"]
[EventCountry "TUR"]
[SourceTitle "playchess.com"]
[Source "ChessBase"]
[SourceQuality "1"]
[TimeControl "5400+30"]

1. Nf3 {[%emt 0:00:30]} Nf6 {[%emt 0:00:30]} 2. d4 {[%emt 0:00:30]} d5 {[%emt 0:00:00]} 3. c4 {[%emt 0:00:30]} e6 {[%emt 0:01:00]} 4. Nc3 {[%emt 0:00:30]} c5 {[%emt 0:00:30]} 5. cxd5 {[%emt 0:00:30]} exd5 {[%emt 0:02:30]} 6. g3 {[%emt 0:00:30]} Nc6 {[%emt 0:01:30]} 7. Bg2 {[%emt 0:00:30]} Bg4 {[%emt 0:06:30]} 8. Bg5 {[%emt 0:05:30]} Bxf3 {[%emt 0:05:30] D33: Tarrasch Defence: 6 g3 sidelines} 9. Bxf3 {[%emt 0:00:30]} cxd4 {[%emt 0:00:30]} (9... Nxd4 10. Bxd5 Be7 11. Bxf6 Bxf6 12. O-O O-O 13. e3 Ne6 14. Qb3 Qe7 15. Bg2 Bxc3 16. bxc3 {½-½ (37) Lupulescu,C (2617)-Bezold,M (2525) Germany 2011}) 10. Nxd5 {[%emt 0:01:30]} Qa5+ {[%emt 0:08:30]} 11. Bd2 {[%emt 0:00:30]} Qd8 {[%emt 0:00:30]} 12. Nxf6+ {[%emt 0:05:30]} Qxf6 {[%emt 0:05:30]} 13. Qb3 {[%emt 0:00:30]} Qe7 {[%emt 0:09:30]} 14. Rc1 $146 {[%emt 0:04:30]} ({Predecessor:} 14. O-O) 14... Rc8 {[%emt 0:03:30]} 15. O-O {[%emt 0:08:30]} g6 {[%emt 0:02:30]} 16. e3 {[%emt 0:10:30]} Bg7 {[%emt 0:01:30]} 17. exd4 {[%emt 0:00:30]} O-O {[%emt 0:01:30]} 18. Bxc6 {[%emt 0:00:30]} bxc6 {[%emt 0:03:30]} 19. Bb4 {[%emt 0:00:00]} Qb7 {[%emt 0:04:30]} 20. Bxf8 {[%emt 0:00:00] Discovered Attack} Qxb3 {[%emt 0:00:30]} 21. axb3 {[%emt 0:00:30]} Kxf8 {[%emt 0:00:00]} 22. Rfd1 {[%emt 0:03:30]} Ke7 {[%emt 0:02:00]} 23. b4 {[%emt 0:00:30]} Rb8 {[%emt 0:01:30]} 24. Rxc6 {[%emt 0:02:30]} Rxb4 {[%emt 0:00:30]} 25. d5 {[%emt 0:02:30]} (25. Rc7+ $142 Kf8 26. d5) 25... Kd7 {[%emt 0:01:30]} 26. Ra6 {[%emt 0:02:30]} Rb7 {[%emt 0:02:30]} 27. d6 {[%emt 0:02:30]} Be5 {[%emt 0:00:30]} 28. Rc1 {[%emt 0:01:30]} Bd4 {[%emt 0:02:30]} 29. Rc7+ {[%emt 0:00:30]} Rxc7 {[%emt 0:00:30]} 30. dxc7 {[%emt 0:00:30]} Kxc7 {[%emt 0:00:00]} 31. b3 {[%emt 0:00:30]} Bb6 {[%emt 0:03:00]} 32. Kg2 {[%emt 0:00:00]} Kc6 {[%emt 0:00:30]} 33. Ra4 {[%emt 0:01:00]} Kd5 {[%emt 0:00:30]} 34. g4 {[%emt 0:02:30]} g5 {[%emt 0:03:30]} 35. Kf3 {[%emt 0:00:30]} f6 {[%emt 0:04:30]} 36. Ke2 {[%emt 0:00:30]} Ke5 {[%emt 0:00:30]} 37. Rb4 {[%emt 0:02:30]} Kd5 {[%emt 0:05:50]} 38. f3 {[%emt 0:00:30]} Ke5 {[%emt 0:02:31]} 39. Kd3 {[%emt 0:00:30]} Kd5 {[%emt 0:00:28]} 40. Rb5+ {[%emt 0:00:30]} Ke6 {[%emt 0:00:38]} 41. Ke4 {[%emt 0:00:30]} h6 {[%emt 0:00:32]} 42. Rb4 $18 {[%emt 0:00:00]} h5 {[%emt 0:03:25]} 43. gxh5 {[%emt 0:00:00]} f5+ {[%emt 0:00:30]} 44. Kd3 {[%emt 0:00:30]} Kf6 {[%emt 0:00:48]} 45. Rc4 {[%emt 0:00:30]} f4 {[%emt 0:02:31]} 46. Rc6+ {[%emt 0:00:00]} Kf7 {[%emt 0:00:31]} 47. Ke4 {[%emt 0:00:00]} Bd8 {[%emt 0:02:11]} 48. Kf5 {[%emt 0:00:30]} Kg7 {[%emt 0:00:00]} 49. Rg6+ {[%emt 0:00:30]} Kh7 {[%emt 0:00:39]} 50. Rxg5 {[%emt 0:00:00]} Kh6 {[%emt 0:00:16]} 51. Rg8 {[%emt 0:00:00]} Bc7 {[%emt 0:00:14]} 52. Rh8+ {[%emt 0:00:30]} Kg7 {[%emt 0:00:06]} 53. Ra8 {[%emt 0:00:30]} Bb6 {[%emt 0:00:39]} 54. Kxf4 {[%emt 0:00:30]} Bc7+ {[%emt 0:00:30]} 55. Kg5 {[%emt 0:00:30]} Bxh2 {[%emt 0:00:30]} 56. Rxa7+ {[%emt 0:00:30]} Kh8 {[%emt 0:00:30]} 57. Kg6 {[%emt 0:00:30]} Bb8 {[%emt 0:00:30]} 58. Ra8 {[%emt 0:00:30]} Kg8 {[%emt 0:00:30]} 59. Rxb8# {[%emt 0:00:30]} 1-0

[Event "Turkish Club Cup 2019"]
[Site "Konya"]
[Date "2019.07.17"]
[Round "2"]
[White "Yasin, Hur"]
[Black "Memis, Furkan"]
[Result "0-1"]
[ECO "D00"]
[WhiteElo "1953"]
[BlackElo "1691"]
[Annotator "NA"]
[PlyCount "115"]
[EventDate "2019.07.16"]
[EventType "team-tourn"]
[EventCountry "TUR"]
[SourceTitle "playchess.com"]
[Source "ChessBase"]
[SourceQuality "1"]
[TimeControl "5400+30"]

1. d4 {[%emt 0:00:30]} Nf6 {[%emt 0:00:30]} 2. Nc3 {[%emt 0:00:30]} d5 {[%emt 0:03:30]} 3. Bf4 {[%emt 0:00:30]} a6 {[%emt 0:01:30]} 4. f3 {[%emt 0:02:30]} (4. e3 b5 5. Nf3 Bb7 6. Bd3 e6 7. Ne2 Nbd7 8. O-O Ne4 9. Ng3 g5 10. Be5 Rg8 11. Bxe4 dxe4 {0-1 (44) Alekseenko,K (2638)-Kovalev,V (2683) St Petersburg 2018}) 4... Bf5 {[%emt 0:02:30]} 5. g4 {[%emt 0:00:30]} Bg6 {[%emt 0:00:30]} 6. h4 {[%emt 0:00:30] D00: 1 d4 d5: Unusual lines} h5 $146 {[%emt 0:06:30]} ({Predecessor:} 6... h6 7. e3 e6 8. h5 Bh7 9. Bd3 Bxd3 10. Qxd3 c5 11. Nge2 {1-0 (52) Vieira,A (1859)-Seccafim,C (1528) Sao Paulo 2017}) 7. g5 {[%emt 0:00:30]} Ng8 {[%emt 0:00:30]} 8. e4 {[%emt 0:01:30]} c6 {[%emt 0:13:30]} 9. Qd2 {[%emt 0:01:30]} e6 {[%emt 0:00:30]} 10. a3 {[%emt 0:07:30]} Bd6 {[%emt 0:09:30]} 11. Nge2 {[%emt 0:02:30]} Qc7 {[%emt 0:11:30]} 12. O-O-O {[%emt 0:00:30]} Nd7 {[%emt 0:00:30]} 13. Bxd6 {[%emt 0:06:30]} Qxd6 {[%emt 0:00:30]} 14. Nf4 {[%emt 0:00:30]} Ne7 {[%emt 0:00:30]} 15. Bd3 {[%emt 0:02:30]} dxe4 {[%emt 0:10:30]} 16. Bxe4 {[%emt 0:01:30]} Bf5 {[%emt 0:00:30]} 17. Bxf5 {[%emt 0:00:30]} exf5 {[%emt 0:00:30]} 18. Rhe1 {[%emt 0:04:30]} O-O-O {[%emt 0:03:30]} 19. Nce2 {[%emt 0:08:30]} Nb6 {[%emt 0:01:30]} 20. Qd3 {[%emt 0:01:30]} g6 {[%emt 0:03:30]} 21. c4 {[%emt 0:00:30]} c5 $14 {[%emt 0:01:30]} 22. d5 {[%emt 0:03:30]} Nd7 {[%emt 0:02:30]} 23. Qc3 {[%emt 0:02:30]} Rhe8 {[%emt 0:01:30]} 24. Rd3 {[%emt 0:07:30]} Kb8 {[%emt 0:02:30]} 25. Ng2 {[%emt 0:09:30]} Nc8 {[%emt 0:03:58]} 26. Nef4 {[%emt 0:00:30]} Rxe1+ {[%emt 0:01:26]} 27. Qxe1 {[%emt 0:00:30]} Ne5 {[%emt 0:00:00]} 28. Rc3 {[%emt 0:00:30]} Nb6 {[%emt 0:02:12]} 29. b3 {[%emt 0:00:30]} Nbd7 {[%emt 0:00:28]} 30. Re3 {[%emt 0:00:30]} Ka7 {[%emt 0:02:08]} 31. Kc2 {[%emt 0:00:30]} Re8 {[%emt 0:01:44]} 32. Qe2 {[%emt 0:01:30]} Rc8 {[%emt 0:00:42]} 33. Nd3 {[%emt 0:04:30]} Nxd3 {[%emt 0:01:09]} 34. Kxd3 {[%emt 0:00:30]} b5 {[%emt 0:00:43]} 35. Re7 {[%emt 0:04:30]} Rc7 {[%emt 0:00:30]} 36. Kc3 {[%emt 0:00:30]} bxc4 {[%emt 0:00:30]} 37. bxc4 {[%emt 0:00:30]} Rb7 {[%emt 0:00:30]} 38. Ne1 {[%emt 0:00:30]} Qb6 {[%emt 0:00:30]} 39. Qa2 {[%emt 0:10:03]} Qd8 {[%emt 0:01:26]} 40. Re2 {[%emt 0:06:03]} Qa5+ {[%emt 0:01:07]} 41. Kd3 {[%emt 0:01:43]} Qa4 {[%emt 0:02:34]} 42. Kc3 {[%emt 0:01:33]} Qa5+ {[%emt 0:02:19]} 43. Kd3 {[%emt 0:01:13]} Nb6 {[%emt 0:00:08]} 44. Ng2 {[%emt 0:02:02]} Na4 {[%emt 0:01:57]} 45. Rc2 {[%emt 0:00:11]} Qc7 {[%emt 0:00:31]} 46. f4 {[%emt 0:01:14]} Qb8 {[%emt 0:00:23]} 47. Ke2 {[%emt 0:01:42]} Nc3+ {[%emt 0:01:40]} 48. Rxc3 {[%emt 0:01:13]} Rb2+ {[%emt 0:00:32]} 49. Rc2 {[%emt 0:00:43]} Rxa2 {[%emt 0:00:01]} 50. Rxa2 {[%emt 0:00:00]} Qb3 {[%emt 0:00:00]} 51. Rd2 {[%emt 0:00:18]} Qxc4+ {[%emt 0:00:00]} 52. Kf2 {[%emt 0:01:09]} Qc3 {[%emt 0:00:25]} 53. Ke2 {[%emt 0:00:08]} Kb7 {[%emt 0:01:28]} 54. d6 {[%emt 0:00:26]} Kc8 {[%emt 0:00:24]} 55. d7+ {[%emt 0:02:35]} Kd8 {[%emt 0:00:31]} 56. Ne3 {[%emt 0:00:03]} c4 {[%emt 0:00:41]} 57. Nc2 {[%emt 0:01:26]} Qg3 {[%emt 0:01:27]} 58. Nb4 {[%emt 0:01:15]} 0-1

[Event "Turkish Club Cup 2019"]
[Site "Konya"]
[Date "2019.07.17"]
[Round "2"]
[White "Salman, Ilhan Serhat"]
[Black "Sarikas, Ertan"]
[Result "1/2-1/2"]
[ECO "D01"]
[WhiteElo "1950"]
[BlackElo "1612"]
[Annotator "NA"]
[PlyCount "128"]
[EventDate "2019.07.16"]
[EventType "team-tourn"]
[EventCountry "TUR"]
[SourceTitle "playchess.com"]
[Source "ChessBase"]
[SourceQuality "1"]
[TimeControl "5400+30"]

1. d4 {[%emt 0:00:30]} d5 {[%emt 0:00:30]} 2. Bg5 {[%emt 0:00:00]} c5 {[%emt 0:02:30]} 3. Nc3 {[%emt 0:03:00]} Nf6 {[%emt 0:04:30]} 4. e3 {[%emt 0:03:30]} e6 {[%emt 0:02:30]} 5. Nf3 {[%emt 0:00:30]} cxd4 {[%emt 0:03:30]} (5... Nc6 6. a3 h6 7. Bh4 Be7 8. dxc5 Bxc5 9. Bd3 O-O 10. O-O Be7 11. Re1 b6 12. Qe2 Bb7 {0-1 (54) Rapport,R (2707)-Andriasian,Z (2585) Riadh 2017}) 6. Qxd4 {[%emt 0:01:30] D01: Veresov Opening} Be7 {[%emt 0:01:30]} 7. Bb5+ $146 {[%emt 0:03:30]} ({Predecessor:} 7. Bxf6 Bxf6 8. Qb4 Nc6 9. Bb5 Bd7 10. Bxc6 Bxc6 11. Nb5 Be7 12. Qb3 O-O {0-1 (39) Cisneros,F-Lamban,C San Jose 1997}) 7... Bd7 {[%emt 0:01:30]} 8. Bxd7+ {[%emt 0:03:30]} Nbxd7 {[%emt 0:03:30]} 9. O-O {[%emt 0:00:30]} O-O {[%emt 0:00:30]} 10. Rad1 {[%emt 0:01:30]} Qc7 {[%emt 0:09:30]} 11. Rfe1 {[%emt 0:04:30]} Rfd8 {[%emt 0:04:30]} 12. Nd2 {[%emt 0:24:30]} Nf8 {[%emt 0:12:30]} 13. Bf4 {[%emt 0:08:30]} Qc5 {[%emt 0:05:30]} 14. Qd3 {[%emt 0:15:30]} a6 {[%emt 0:04:30]} 15. Nb3 {[%emt 0:00:30]} Qa7 {[%emt 0:04:30]} 16. Ne2 {[%emt 0:12:48]} Rac8 {[%emt 0:04:30]} 17. h3 {[%emt 0:01:40]} Ng6 {[%emt 0:02:30]} 18. c3 {[%emt 0:01:49]} Nxf4 {[%emt 0:04:30]} 19. exf4 {[%emt 0:00:06]} Ne4 {[%emt 0:01:30]} 20. Ned4 {[%emt 0:00:48]} Qb8 {[%emt 0:01:30]} 21. f3 {[%emt 0:03:00]} Nc5 {[%emt 0:02:30]} 22. Qe3 {[%emt 0:00:34]} Nxb3 {[%emt 0:00:30]} 23. Nxb3 {[%emt 0:01:58]} Bh4 {[%emt 0:04:18]} 24. Re2 {[%emt 0:00:44]} Bg3 {[%emt 0:01:46]} 25. Rd4 {[%emt 0:00:38]} Rc4 {[%emt 0:01:16]} 26. f5 {[%emt 0:00:59]} exf5 {[%emt 0:04:19]} 27. Rxd5 {[%emt 0:00:13]} Rcc8 {[%emt 0:00:55]} 28. Rxd8+ {[%emt 0:00:46]} Rxd8 {[%emt 0:00:06]} 29. Nd4 {[%emt 0:00:33]} h6 {[%emt 0:03:53]} 30. Qe7 {[%emt 0:01:35]} Bd6 {[%emt 0:01:21]} 31. Qh4 {[%emt 0:01:02]} Bc5 {[%emt 0:00:54]} 32. Kh1 {[%emt 0:01:57]} Bxd4 {[%emt 0:00:50]} 33. cxd4 {[%emt 0:00:03]} Qd6 {[%emt 0:00:00]} 34. Rd2 {[%emt 0:01:53]} Rc8 {[%emt 0:00:26]} 35. Qe1 {[%emt 0:01:02]} Rc4 {[%emt 0:04:32]} 36. d5 {[%emt 0:01:33]} Rc5 {[%emt 0:00:24]} 37. Qd1 {[%emt 0:00:31]} b5 {[%emt 0:01:13]} 38. Qb3 {[%emt 0:00:41]} Rc1+ {[%emt 0:02:25]} 39. Rd1 {[%emt 0:00:30]} Rxd1+ {[%emt 0:00:30]} 40. Qxd1 {[%emt 0:00:00]} Kf8 {[%emt 0:00:00]} 41. Qd4 {[%emt 0:00:00]} g6 {[%emt 0:00:46]} 42. b4 {[%emt 0:00:21]} Ke8 {[%emt 0:01:06]} 43. Kg1 {[%emt 0:00:24]} Kd7 {[%emt 0:00:36]} 44. Kf2 {[%emt 0:00:31]} h5 {[%emt 0:00:35]} 45. f4 {[%emt 0:01:49]} Kd8 {[%emt 0:01:07]} 46. Ke3 {[%emt 0:00:23]} Qe7+ {[%emt 0:00:00]} 47. Kd2 {[%emt 0:00:37]} Qe4 {[%emt 0:00:30]} 48. Qb6+ {[%emt 0:00:17]} Kd7 {[%emt 0:00:54]} 49. Qc6+ {[%emt 0:00:14]} Kd8 {[%emt 0:00:15]} 50. Qd6+ {[%emt 0:00:15]} Ke8 {[%emt 0:00:21]} 51. Qb8+ {[%emt 0:00:17]} Kd7 {[%emt 0:00:10]} 52. Qb7+ {[%emt 0:00:05]} Kd8 {[%emt 0:00:01]} 53. Qa8+ {[%emt 0:01:22]} Kd7 $11 {[%emt 0:00:30]} 54. Qa7+ {[%emt 0:00:30]} Kd8 {[%emt 0:00:00]} 55. Qb8+ {[%emt 0:00:15]} Kd7 {[%emt 0:00:13]} 56. Qb7+ {[%emt 0:00:00]} Kd8 {[%emt 0:00:00]} 57. Qb6+ {[%emt 0:00:00]} Kd7 {[%emt 0:00:35]} 58. Qc6+ {[%emt 0:00:23]} Kd8 {[%emt 0:00:00]} 59. Qd6+ {[%emt 0:01:12]} Ke8 {[%emt 0:00:00]} 60. Qb8+ {[%emt 0:01:24]} Kd7 {[%emt 0:00:19]} 61. Qb7+ {[%emt 0:00:30]} Kd8 {[%emt 0:00:00]} 62. Qb6+ {[%emt 0:00:09]} Kd7 {[%emt 0:00:00]} 63. Qc6+ {[%emt 0:00:48]} Kd8 {[%emt 0:00:00]} 64. Qf6+ {[%emt 0:00:40]} Ke8 {[%emt 0:00:58]} 1/2-1/2

[Event "Turkish Club Cup 2019"]
[Site "Konya"]
[Date "2019.07.17"]
[Round "2"]
[White "Sayin, Atakan"]
[Black "Tugmen, Alperen"]
[Result "1/2-1/2"]
[ECO "B00"]
[WhiteElo "1925"]
[BlackElo "1410"]
[Annotator "NA"]
[PlyCount "131"]
[EventDate "2019.07.16"]
[EventType "team-tourn"]
[EventCountry "TUR"]
[SourceTitle "playchess.com"]
[Source "ChessBase"]
[SourceQuality "1"]
[TimeControl "5400+30"]

1. e4 {[%emt 0:00:30]} e6 {[%emt 0:00:30]} 2. d4 {[%emt 0:00:30]} b6 {[%emt 0:00:30]} 3. a3 {[%emt 0:01:30]} Bb7 {[%emt 0:01:30]} 4. Nc3 {[%emt 0:00:30]} d6 {[%emt 0:01:30]} 5. Bd3 {[%emt 0:04:30]} Nd7 {[%emt 0:01:30]} 6. Nf3 {[%emt 0:00:30]} g6 {[%emt 0:02:30]} 7. O-O {[%emt 0:04:30]} Bg7 {[%emt 0:01:30]} 8. Bg5 {[%emt 0:00:30]} Ne7 {[%emt 0:02:30]} 9. Qd2 {[%emt 0:02:30]} h6 {[%emt 0:06:30]} 10. Be3 {[%emt 0:09:30]} g5 {[%emt 0:20:30]} 11. h3 {[%emt 0:05:30]} a6 {[%emt 0:12:30]} 12. Nh2 {[%emt 0:02:30]} c5 {[%emt 0:05:30]} 13. dxc5 {[%emt 0:16:30]} Nxc5 {[%emt 0:09:30]} 14. f4 $11 {[%emt 0:00:30]} gxf4 {[%emt 0:12:24]} 15. Bxc5 {[%emt 0:04:30]} bxc5 {[%emt 0:08:06]} 16. Qxf4 {[%emt 0:02:30]} Rf8 {[%emt 0:01:21]} 17. Ng4 {[%emt 0:06:30]} Ng6 {[%emt 0:03:26]} 18. Qf3 {[%emt 0:04:30]} Qe7 {[%emt 0:03:38]} 19. Qe2 {[%emt 0:08:30]} Ne5 {[%emt 0:01:52]} 20. Ne3 {[%emt 0:07:04]} Qg5 {[%emt 0:01:05]} 21. Rae1 {[%emt 0:02:13]} Nxd3 {[%emt 0:00:47]} 22. Qxd3 {[%emt 0:02:59]} Bd4 {[%emt 0:00:42]} 23. Kh1 {[%emt 0:03:14]} Qg6 {[%emt 0:00:49]} 24. Nf5 {[%emt 0:01:01]} Kd7 {[%emt 0:00:46]} 25. Nxd4 {[%emt 0:00:36]} cxd4 {[%emt 0:00:08]} 26. Qxd4 {[%emt 0:00:40]} Rac8 {[%emt 0:00:40]} 27. Rd1 {[%emt 0:01:53]} Rc6 {[%emt 0:00:42]} 28. Qf6 {[%emt 0:03:06]} Qxf6 {[%emt 0:00:39]} 29. Rxf6 {[%emt 0:00:02]} Rb6 {[%emt 0:00:17]} 30. e5 {[%emt 0:00:43]} Ke7 {[%emt 0:00:32]} 31. Rxh6 {[%emt 0:02:17]} dxe5 {[%emt 0:00:22]} 32. b4 {[%emt 0:02:03]} Rc6 {[%emt 0:00:30]} 33. Ne4 {[%emt 0:00:47]} Rxc2 {[%emt 0:00:37]} 34. Nc5 {[%emt 0:00:53]} Bxg2+ {[%emt 0:00:27]} 35. Kg1 {[%emt 0:00:20]} Bc6 {[%emt 0:00:33]} 36. Rh4 {[%emt 0:00:30]} Rg8+ {[%emt 0:00:25]} 37. Rg4 {[%emt 0:00:47]} Rxg4+ {[%emt 0:00:22]} 38. hxg4 {[%emt 0:00:00]} Rg2+ {[%emt 0:00:30]} 39. Kf1 {[%emt 0:00:04]} Rxg4 {[%emt 0:00:09]} 40. Nd3 {[%emt 0:00:58]} Bb5 {[%emt 0:00:35]} 41. Kf2 {[%emt 0:00:13]} Rd4 {[%emt 0:00:46]} 42. Nb2 {[%emt 0:00:08]} Rxd1 {[%emt 0:00:20]} 43. Nxd1 {[%emt 0:00:30]} Kd6 {[%emt 0:00:30]} 44. Nc3 {[%emt 0:00:30]} f5 {[%emt 0:00:30]} 45. Kf3 {[%emt 0:00:30]} e4+ {[%emt 0:00:30]} 46. Kf4 {[%emt 0:00:30]} e5+ {[%emt 0:00:30]} 47. Kxf5 {[%emt 0:00:30]} e3 {[%emt 0:00:30]} 48. Ne4+ {[%emt 0:01:31]} Kd5 {[%emt 0:01:01]} 49. Ng5 {[%emt 0:00:10]} e2 {[%emt 0:00:20]} 50. Nf3 {[%emt 0:00:07]} e4 {[%emt 0:00:21]} 51. Ne1 {[%emt 0:00:06]} Kd4 {[%emt 0:00:30]} 52. Kf4 {[%emt 0:00:05]} Bd3 {[%emt 0:00:23]} 53. a4 {[%emt 0:00:57]} Kc4 {[%emt 0:00:23]} 54. b5 {[%emt 0:00:37]} axb5 {[%emt 0:00:30]} 55. axb5 {[%emt 0:00:30]} Kxb5 {[%emt 0:00:00]} 56. Ke3 {[%emt 0:00:00]} Kc4 {[%emt 0:00:28]} 57. Kd2 {[%emt 0:00:00]} Kd4 {[%emt 0:00:48]} 58. Ng2 {[%emt 0:00:00]} Kc4 {[%emt 0:00:48]} 59. Nf4 {[%emt 0:00:14]} Kd4 {[%emt 0:00:15]} 60. Nxe2+ {[%emt 0:01:02]} Bxe2 {[%emt 0:01:14]} 61. Kxe2 {[%emt 0:00:06]} e3 {[%emt 0:00:23]} 62. Ke1 {[%emt 0:00:22]} Kc3 {[%emt 0:00:07]} 63. Ke2 {[%emt 0:00:14]} Kd4 {[%emt 0:00:15]} 64. Ke1 {[%emt 0:00:30]} Ke4 {[%emt 0:00:00]} 65. Ke2 {[%emt 0:00:00]} Kf4 {[%emt 0:00:28]} 66. Ke1 {[%emt 0:00:08]} 1/2-1/2